bitfinex-derivatives/quotes_BTCF0:USTF0_20250528
["timestamp","ask_amount","ask_price","bid_price","bid_amount"]
[1748408972697,0.35361396,108870.0,108860.0,1.9259234]
[1748408974594,0.35349396,108870.0,108860.0,1.9259234]
[1748408976605,0.35349396,108870.0,108860.0,1.80456511]
[1748408978914,0.35349396,108870.0,108860.0,1.08296511]
[1748408979103,0.35349396,108870.0,108860.0,1.80456511]
[1748408982722,0.35349396,108870.0,108860.0,2.00551653]
[1748408983019,0.35349396,108870.0,108860.0,2.00550847]
[1748408983913,0.35349396,108870.0,108860.0,1.92384905]
[1748408985812,0.35349396,108870.0,108860.0,2.13847476]
[1748408986211,0.35349396,108870.0,108860.0,2.01715647]
[1748408987523,0.35349396,108870.0,108860.0,1.94702443]
[1748408988224,0.35349396,108870.0,108860.0,2.01715426]
[1748408988607,0.35349396,108870.0,108860.0,1.85371701]
[1748408991118,0.35349396,108870.0,108860.0,1.67008501]
[1748408991318,0.35349396,108870.0,108860.0,1.85371701]
[1748408991629,0.35349396,108870.0,108860.0,1.85371122]
[1748408991923,0.35349396,108870.0,108860.0,1.13211122]
[1748408992123,0.35349396,108870.0,108860.0,1.85371122]
[1748408992818,0.35349396,108870.0,108860.0,2.01714117]
[1748408995423,0.35349396,108870.0,108860.0,2.01714121]
[1748409000033,0.35349396,108870.0,108860.0,1.9238389]
[1748409000439,0.16987876,108870.0,108860.0,1.9238389]
[1748409001336,0.16987876,108870.0,108860.0,1.2022389]
[1748409001529,0.16987876,108870.0,108860.0,2.01714121]
[1748409001726,0.16987876,108870.0,108860.0,1.29554121]
[1748409001926,0.16987876,108870.0,108860.0,2.01714121]
[1748409002237,0.35349386,108870.0,108860.0,2.01714121]
[1748409003030,0.35349386,108870.0,108860.0,2.01714578]
[1748409003729,0.35349386,108870.0,108860.0,1.29554578]
[1748409003929,0.35349386,108870.0,108860.0,2.01714578]
[1748409004332,0.35349386,108870.0,108860.0,1.89582749]
[1748409004635,0.35349386,108870.0,108860.0,2.01714578]
[1748409004838,0.35349386,108870.0,108860.0,2.01714553]
[1748409005230,0.35349386,108870.0,108860.0,1.92384322]
[1748409005429,0.35349386,108870.0,108860.0,2.01714553]
[1748409005833,0.35349386,108870.0,108860.0,1.29554553]
[1748409006032,0.35349386,108870.0,108860.0,2.01714553]
[1748409007134,0.35349386,108870.0,108860.0,2.01710553]
[1748409007839,0.16987876,108870.0,108860.0,2.01710553]
[1748409008644,0.16987876,108870.0,108860.0,2.00544988]
[1748409009532,0.35349386,108870.0,108860.0,2.00544988]
[1748409009934,0.35349386,108870.0,108860.0,1.95629945]
[1748409013449,0.35349386,108870.0,108860.0,2.00544982]
[1748409014338,0.35349386,108870.0,108860.0,2.11544982]
[1748409016146,0.35349386,108870.0,108860.0,1.39384982]
[1748409016337,0.35349386,108870.0,108860.0,2.11544982]
[1748409016943,0.35349386,108870.0,108860.0,2.11544735]
[1748409017135,0.35349386,108870.0,108860.0,2.23676564]
[1748409017647,0.16987876,108870.0,108860.0,2.23676564]
[1748409018550,0.16987876,108870.0,108860.0,2.24842129]
[1748409021039,0.16987876,108870.0,108860.0,2.17829361]
[1748409021643,0.16987876,108870.0,108860.0,2.27648764]
[1748409021855,0.13269667,108870.0,108860.0,2.45377106]
[1748409022052,0.11777744,108870.0,108860.0,2.38286875]
[1748409022260,0.11777744,108870.0,108860.0,2.51440303]
[1748409022445,0.11789744,108870.0,108860.0,3.79957472]
[1748409022750,0.11789744,108870.0,108860.0,3.90446125]
[1748409023648,0.11789744,108870.0,108860.0,3.80257472]
[1748409023948,0.11789744,108870.0,108860.0,3.919209]
[1748409024142,0.11789744,108870.0,108860.0,4.05950659]
[1748409024654,0.11789744,108870.0,108860.0,4.06250659]
[1748409024860,0.11789744,108870.0,108860.0,3.922209]
[1748409025056,0.07041667,108870.0,108860.0,4.014065]
[1748409025447,0.07029667,108870.0,108860.0,4.014065]
[1748409025650,0.07041667,108870.0,108860.0,4.014065]
[1748409026054,0.07041667,108870.0,108860.0,4.15436259]
[1748409026261,0.07041667,108870.0,108860.0,4.09828976]
[1748409026457,0.07041667,108870.0,108860.0,4.11032372]
[1748409026656,0.07041667,108870.0,108860.0,4.01846772]
[1748409026845,0.07489876,108870.0,108860.0,4.01846772]
[1748409027051,0.07489876,108870.0,108860.0,4.01856772]
[1748409029553,0.07489876,108870.0,108860.0,3.87827013]
[1748409029755,0.07489876,108870.0,108860.0,3.76163585]
[1748409030654,0.07489876,108870.0,108860.0,3.7615773]
[1748409030854,0.10699876,108870.0,108860.0,3.77531539]
[1748409031460,0.10699876,108870.0,108860.0,3.97795148]
[1748409031663,0.10699876,108870.0,108860.0,3.91561298]
[1748409031860,0.10699876,108870.0,108860.0,4.03224726]
[1748409032069,0.05998183,108870.0,108860.0,4.03224726]
[1748409032261,0.05144007,108870.0,108860.0,4.03224726]
[1748409032462,0.08474007,108870.0,108860.0,3.77531539]
[1748409033270,0.08474007,108870.0,108860.0,4.03224726]
[1748409033474,0.08474007,108870.0,108860.0,3.91561298]
[1748409033769,0.08474007,108870.0,108860.0,3.77531539]
[1748409034163,0.08474007,108870.0,108860.0,3.74026269]
[1748409034561,0.11484007,108870.0,108860.0,3.74026269]
[1748409036371,0.11484007,108870.0,108860.0,3.74016269]
[1748409036558,0.14494007,108870.0,108860.0,3.74016269]
[1748409036851,0.14494007,108870.0,108860.0,3.54891297]
[1748409041569,0.14494007,108870.0,108860.0,3.69093396]
[1748409041895,0.14494007,108870.0,108860.0,3.12857053]
[1748409042096,0.14494007,108870.0,108860.0,2.09634867]
[1748409042563,0.14494007,108870.0,108860.0,2.09646867]
[1748409042775,0.14494007,108870.0,108860.0,1.67890867]
[1748409042970,0.14494007,108870.0,108860.0,2.02655297]
[1748409043185,0.14494007,108870.0,108860.0,1.78391639]
[1748409043382,0.14494007,108870.0,108860.0,2.02655297]
[1748409043769,0.14494007,108870.0,108860.0,2.02455297]
[1748409044076,0.14494007,108870.0,108860.0,2.02255297]
[1748409044458,0.14494007,108870.0,108860.0,2.09248516]
[1748409045567,0.14494007,108870.0,108860.0,1.8136478]
[1748409045763,0.14494007,108870.0,108860.0,2.05664142]
[1748409045960,0.14494007,108870.0,108860.0,2.15455457]
[1748409046968,0.14494007,108870.0,108860.0,2.25918876]
[1748409047267,0.14494007,108870.0,108860.0,2.16127561]
[1748409047680,0.14494007,108870.0,108860.0,2.16129205]
[1748409048478,0.14494007,108870.0,108860.0,2.17619205]
[1748409050275,0.14494007,108870.0,108860.0,2.17519205]
[1748409050478,0.14494007,108870.0,108860.0,2.17719205]
[1748409050977,0.14494007,108870.0,108860.0,1.71231551]
[1748409051178,0.14494007,108870.0,108860.0,2.17156621]
[1748409051778,0.14494007,108870.0,108860.0,2.20406413]
[1748409053293,0.14045798,108870.0,108860.0,2.20406413]
[1748409058076,0.14045798,108870.0,108860.0,2.32538242]
[1748409058271,0.14045798,108870.0,108860.0,2.38606336]
[1748409060681,0.14045798,108870.0,108860.0,2.28805501]
[1748409061081,0.14045798,108870.0,108860.0,2.16673672]
[1748409061887,0.14045798,108870.0,108860.0,2.17826492]
[1748409063279,0.14045798,108870.0,108860.0,2.19494902]
[1748409064480,0.14494007,108870.0,108860.0,2.19494902]
[1748409064784,0.14494007,108870.0,108860.0,1.83099415]
[1748409064982,0.14494007,108870.0,108860.0,2.14587126]
[1748409065180,0.14494007,108870.0,108860.0,2.28815492]
[1748409065579,0.14045798,108870.0,108860.0,2.28815492]
[1748409065784,0.14045798,108870.0,108860.0,2.07364007]
[1748409066285,0.14045798,108870.0,108860.0,2.16684031]
[1748409066585,0.14494007,108870.0,108860.0,2.07364007]
[1748409067085,0.14494007,108870.0,108860.0,2.15684812]
[1748409067485,0.14494007,108870.0,108860.0,2.25004824]
[1748409068586,0.14494007,108870.0,108860.0,1.73616824]
[1748409068786,0.14494007,108870.0,108860.0,2.26504824]
[1748409069082,0.14494007,108870.0,108860.0,2.16694019]
[1748409069590,0.14045798,108870.0,108860.0,2.16694019]
[1748409070486,0.14045798,108870.0,108860.0,2.07374007]
[1748409070790,0.14494007,108870.0,108860.0,1.55986007]
[1748409070981,0.14494007,108870.0,108860.0,2.05866007]
[1748409071181,0.14494007,108870.0,108860.0,2.24998447]
[1748409071587,0.14494007,108870.0,108860.0,2.15677611]
[1748409071788,0.14494007,108870.0,108860.0,2.05866007]
[1748409073693,0.14045798,108870.0,108860.0,2.05866825]
[1748409074403,0.14045798,108870.0,108860.0,2.19498654]
[1748409074784,0.14045798,108870.0,108860.0,1.81603167]
[1748409074992,0.14045798,108870.0,108860.0,2.1567877]
[1748409076590,0.14494007,108870.0,108860.0,1.6429877]
[1748409076787,0.14494007,108870.0,108860.0,2.1567877]
[1748409077493,0.14494007,108870.0,108860.0,2.10769242]
[1748409078498,0.14494007,108870.0,108860.0,2.12769242]
[1748409078704,0.14045798,108870.0,108860.0,2.12769242]
[1748409079698,0.14494007,108870.0,108860.0,2.12769242]
[1748409080702,0.14045798,108870.0,108860.0,2.12769242]
[1748409083700,0.14494007,108870.0,108860.0,2.12769242]
[1748409084203,0.14494007,108870.0,108860.0,2.14259242]
[1748409084800,0.14045798,108870.0,108860.0,2.20925299]
[1748409085000,0.14045798,108870.0,108860.0,2.12769242]
[1748409085704,0.14494007,108870.0,108860.0,2.12769242]
[1748409087403,0.15368007,108870.0,108860.0,2.12769242]
[1748409087804,0.14919798,108870.0,108860.0,2.12769242]
[1748409088403,0.14919798,108870.0,108860.0,2.14259242]
[1748409088803,0.14919798,108870.0,108860.0,3.30511071]
[1748409089508,0.14919798,108870.0,108860.0,3.35420494]
[1748409089806,0.14919798,108870.0,108860.0,2.84040494]
[1748409090105,0.14919798,108870.0,108860.0,3.35420494]
[1748409092111,0.14919798,108870.0,108860.0,3.30511071]
[1748409092604,0.14919798,108870.0,108860.0,3.20699126]
[1748409092908,0.13428045,108870.0,108860.0,3.20699126]
[1748409093207,0.11797869,108870.0,108860.0,3.20699126]
[1748409093807,0.11806514,108870.0,108860.0,3.20699126]
[1748409094502,0.11806514,108870.0,108860.0,3.42862814]
[1748409096300,0.11806514,108870.0,108860.0,3.30730985]
[1748409096706,0.11806514,108870.0,108860.0,3.30731099]
[1748409097308,0.11806514,108870.0,108860.0,3.44760858]
[1748409097507,0.11806514,108870.0,108860.0,3.3309743]
[1748409100205,0.11806514,108870.0,108860.0,3.3308543]
[1748409100404,0.11806514,108870.0,108860.0,3.13464977]
[1748409101211,0.11806514,108870.0,108860.0,3.13463834]
[1748409101613,0.11806514,108870.0,108860.0,3.22783032]
[1748409103319,0.11806514,108870.0,108860.0,4.72783032]
[1748409105521,0.11806514,108870.0,108860.0,4.72765076]
[1748409107119,0.11806514,108870.0,108860.0,4.63445878]
[1748409107624,0.11806514,108870.0,108860.0,3.91285878]
[1748409107821,0.11806514,108870.0,108860.0,4.63445878]
[1748409108018,0.11806514,108870.0,108860.0,4.82574369]
[1748409108612,0.11806514,108870.0,108860.0,4.58310711]
[1748409109015,0.11806514,108870.0,108860.0,4.82574369]
[1748409109829,0.11806514,108870.0,108860.0,4.82574492]
[1748409110016,0.11806514,108870.0,108860.0,4.40822492]
[1748409110220,0.11806514,108870.0,108860.0,4.82570492]
[1748409110523,0.11806514,108870.0,108860.0,4.72760927]
[1748409111527,0.11806514,108870.0,108860.0,4.63442001]
[1748409113125,0.12254723,108870.0,108860.0,4.63442001]
[1748409114137,0.11806514,108870.0,108860.0,4.63442001]
[1748409114313,0.11806514,108870.0,108860.0,4.73927576]
[1748409114922,0.11806514,108870.0,108860.0,4.49663918]
[1748409115128,0.11806514,108870.0,108860.0,4.73927576]
[1748409116626,0.11806514,108870.0,108860.0,4.7557383]
[1748409117239,0.11806514,108870.0,108860.0,4.86059405]
[1748409117526,0.11806514,108870.0,108860.0,4.73927576]
[1748409117923,0.10314765,108870.0,108860.0,4.9116009]
[1748409118122,0.10314765,108870.0,108860.0,4.80674515]
[1748409118326,0.10314765,108870.0,108860.0,4.94704274]
[1748409118519,0.10244645,108870.0,108860.0,4.94704274]
[1748409119625,0.10232645,108870.0,108860.0,4.78506136]
[1748409119822,0.10232645,108870.0,108860.0,4.96869336]
[1748409121429,0.10232645,108870.0,108860.0,4.90120546]
[1748409121931,0.10232645,108870.0,108860.0,4.76090787]
[1748409122332,0.10232645,108870.0,108860.0,4.77738892]
[1748409122837,0.10232645,108870.0,108860.0,4.72848188]
[1748409123032,0.10232645,108870.0,108860.0,4.77738636]
[1748409123231,0.10232645,108870.0,108860.0,4.65606807]
[1748409125634,0.10232645,108870.0,108860.0,4.76090531]
[1748409125837,0.10232645,108870.0,108860.0,4.75890531]
[1748409126530,0.10232645,108870.0,108860.0,4.8802236]
[1748409127528,0.10232645,108870.0,108860.0,4.8782236]
[1748409128239,0.10232645,108870.0,108860.0,4.77338636]
[1748409131139,0.10232645,108870.0,108860.0,4.79578636]
[1748409131528,0.10232645,108870.0,108860.0,4.9006236]
[1748409131929,0.08740915,108870.0,108860.0,4.95631154]
[1748409132240,0.08740915,108870.0,108860.0,5.09660913]
[1748409132440,0.08740915,108870.0,108860.0,5.09760913]
[1748409133337,0.08740915,108870.0,108860.0,4.95731154]
[1748409133841,0.08740915,108870.0,108860.0,4.95831154]
[1748409135642,0.08740915,108870.0,108860.0,4.95828667]
[1748409137543,0.08752915,108870.0,108860.0,4.95828667]
[1748409137945,0.08752915,108870.0,108860.0,4.85344943]
[1748409138141,0.08752915,108870.0,108860.0,4.97008371]
[1748409138343,0.08752915,108870.0,108860.0,5.1103813]
[1748409139946,0.08752915,108870.0,108860.0,5.11037839]
[1748409140140,0.06914645,108870.0,108860.0,5.11037839]
[1748409140446,0.00020645,108870.0,108860.0,5.11047839]
[1748409140940,0.00020645,108870.0,108860.0,4.79787337]
[1748409142541,0.01643753,108880.0,108870.0,0.1836152]
[1748409142747,1e-08,108880.0,108870.0,1.72469963]
[1748409142949,1e-08,108880.0,108870.0,1.75599963]
[1748409143244,1e-08,108880.0,108870.0,3.25599963]
[1748409143949,0.03070001,108880.0,108870.0,3.25599963]
[1748409144134,0.06100001,108880.0,108870.0,3.16075963]
[1748409144338,0.06112001,108880.0,108870.0,3.67443963]
[1748409144741,0.06112001,108880.0,108870.0,3.62554814]
[1748409144935,0.06112001,108880.0,108870.0,3.67442938]
[1748409145242,0.06112001,108880.0,108870.0,3.67542938]
[1748409145454,0.06112001,108880.0,108870.0,3.62654814]
[1748409145852,0.06112001,108880.0,108870.0,3.67542923]
[1748409146243,0.06112,108880.0,108870.0,3.67542923]
[1748409149650,0.06112,108880.0,108870.0,3.67544005]
[1748409150938,0.04620369,108880.0,108870.0,3.99875348]
[1748409151251,0.04620369,108880.0,108870.0,3.90069012]
[1748409152553,0.04620369,108880.0,108870.0,4.15762199]
[1748409153352,0.04620369,108880.0,108870.0,4.18892199]
[1748409154055,0.04620369,108880.0,108870.0,4.1889254]
[1748409154261,0.07770369,108880.0,108870.0,4.1889254]
[1748409155453,0.07770369,108880.0,108870.0,4.32449106]
[1748409155650,0.07770369,108880.0,108870.0,4.27517784]
[1748409155842,0.07770369,108880.0,108870.0,4.03680413]
[1748409156648,0.07770369,108880.0,108870.0,4.1889254]
[1748409156855,0.07758369,108880.0,108870.0,4.1889254]
[1748409157155,0.07770369,108880.0,108870.0,3.95043259]
[1748409157555,0.07770369,108880.0,108870.0,3.95039259]
[1748409157952,0.00408042,108880.0,108870.0,3.95039259]
[1748409158154,0.00420042,108880.0,108870.0,3.9503691]
[1748409161155,0.00536753,108890.0,108880.0,0.42784404]
[1748409161462,0.00536753,108890.0,108880.0,1.7494656]
[1748409161653,0.00536753,108890.0,108880.0,1.58902711]
[1748409163057,0.00113753,108890.0,108880.0,1.58902711]
[1748409164171,0.03373753,108890.0,108880.0,1.58902711]
[1748409164454,0.03373753,108890.0,108880.0,2.73492267]
[1748409164854,0.03373753,108890.0,108880.0,3.15232267]
[1748409165364,0.03373753,108890.0,108880.0,3.00516607]
[1748409166049,0.03373753,108890.0,108880.0,3.12180035]
[1748409166561,0.03373753,108890.0,108880.0,2.5998549]
[1748409166767,0.03373753,108890.0,108880.0,3.25725839]
[1748409167057,0.03373753,108890.0,108880.0,2.69256411]
[1748409167269,0.03373753,108890.0,108880.0,3.20616411]
[1748409167858,0.03821962,108890.0,108880.0,3.20616411]
[1748409168862,0.03373753,108890.0,108880.0,3.20616411]
[1748409170965,0.03373753,108890.0,108880.0,3.20617685]
[1748409172365,0.03373753,108890.0,108880.0,3.23747685]
[1748409174163,0.03821962,108890.0,108880.0,3.23747685]
[1748409174764,0.03821962,108890.0,108880.0,2.87667685]
[1748409174965,0.03821962,108890.0,108880.0,3.59827685]
[1748409175270,0.03821962,108890.0,108880.0,3.59828698]
[1748409176365,0.03821962,108890.0,108880.0,3.3556504]
[1748409176553,0.04345962,108890.0,108880.0,3.66560581]
[1748409177767,0.04345962,108890.0,108880.0,3.56083275]
[1748409179567,0.04345962,108890.0,108880.0,3.56084353]
[1748409181662,0.04345962,108890.0,108880.0,3.69667228]
[1748409183874,0.04345962,108890.0,108880.0,3.59208891]
[1748409184071,0.04345962,108890.0,108880.0,3.69667569]
[1748409185372,0.04345962,108890.0,108880.0,3.72717569]
[1748409187373,0.04345962,108890.0,108880.0,3.72713569]
[1748409188071,0.04345962,108890.0,108880.0,3.67145075]
[1748409188273,0.04345962,108890.0,108880.0,3.67145057]
[1748409190575,0.04345962,108890.0,108880.0,3.7271353]
[1748409190877,0.04345962,108890.0,108880.0,3.3098153]
[1748409191076,0.04345962,108890.0,108880.0,3.7271353]
[1748409191577,0.04345962,108890.0,108880.0,3.3098153]
[1748409191885,0.04345962,108890.0,108880.0,3.03075701]
[1748409192088,0.34835951,108890.0,108880.0,2.88628197]
[1748409192278,0.34835951,108890.0,108880.0,3.27565133]
[1748409192581,0.16477791,108890.0,108880.0,3.26164307]
[1748409194880,0.16477791,108890.0,108880.0,2.91759398]
[1748409195179,0.16477791,108890.0,108880.0,3.03891227]
[1748409196583,0.1668459,108890.0,108880.0,3.06971227]
[1748409197171,0.04552761,108890.0,108880.0,3.06971227]
[1748409198277,0.04104552,108890.0,108880.0,3.06971227]
[1748409199383,0.04116552,108890.0,108880.0,3.10181227]
[1748409202085,0.04116552,108890.0,108880.0,2.98049398]
[1748409202274,0.04116552,108890.0,108880.0,3.22313056]
[1748409203187,0.04116552,108890.0,108880.0,2.18201056]
[1748409205585,0.04116552,108890.0,108880.0,2.21291056]
[1748409208182,0.04116552,108890.0,108880.0,2.09163227]
[1748409209483,0.04564761,108890.0,108880.0,2.09163227]
[1748409211396,0.04564761,108890.0,108880.0,1.67427227]
[1748409211599,0.04564761,108890.0,108880.0,2.09163227]
[1748409212597,0.04564761,108890.0,108880.0,2.07011733]
[1748409212804,0.04564761,108890.0,108880.0,2.01403669]
[1748409213591,0.04116552,108890.0,108880.0,2.01403669]
[1748409215600,0.04116552,108890.0,108880.0,2.18989068]
[1748409216499,0.04564761,108890.0,108880.0,2.18989068]
[1748409217292,0.04564761,108890.0,108880.0,2.22676119]
[1748409218493,0.04116552,108890.0,108880.0,2.22676119]
[1748409219602,0.04564761,108890.0,108880.0,2.22680848]
[1748409220095,0.04564761,108890.0,108880.0,2.2151857]
[1748409221701,0.04564761,108890.0,108880.0,2.21520756]
[1748409223901,0.04564761,108890.0,108880.0,2.16570748]
[1748409224203,0.04564761,108890.0,108880.0,2.21522141]
[1748409224605,0.04464761,108890.0,108880.0,2.21522141]
[1748409224792,0.04664761,108890.0,108880.0,2.21522141]
[1748409225594,0.04664761,108890.0,108880.0,2.09390312]
[1748409225794,0.04664761,108890.0,108880.0,2.21522141]
[1748409226303,0.04664761,108890.0,108880.0,1.70162141]
[1748409226499,0.04664761,108890.0,108880.0,2.21518141]
[1748409227205,0.04664761,108890.0,108880.0,2.13359952]
[1748409228209,0.04664761,108890.0,108880.0,2.1336067]
[1748409229104,0.04664761,108890.0,108880.0,2.21520223]
[1748409229603,0.23022901,108890.0,108880.0,2.08408559]
[1748409229796,0.04664761,108890.0,108880.0,2.01399669]
[1748409230617,0.04664761,108890.0,108880.0,2.22689682]
[1748409231101,0.23022901,108890.0,108880.0,2.22689682]
[1748409231605,0.23022901,108890.0,108880.0,2.13364548]
[1748409231790,0.04664761,108890.0,108880.0,2.13364548]
[1748409231995,0.23022901,108890.0,108880.0,2.19003534]
[1748409232407,0.3515473,108890.0,108880.0,1.55515705]
[1748409232604,0.3515473,108890.0,108880.0,2.16390217]
[1748409232916,0.3515473,108890.0,108880.0,2.08213287]
[1748409233097,0.3515473,108890.0,108880.0,1.62468468]
[1748409233297,0.3515473,108890.0,108880.0,1.88579021]
[1748409233512,0.3515473,108890.0,108880.0,2.0071085]
[1748409233698,0.3515473,108890.0,108880.0,1.4935485]
[1748409234113,0.23022901,108890.0,108880.0,1.4935485]
[1748409234906,0.23022901,108890.0,108880.0,1.6463085]
[1748409235606,0.23022901,108890.0,108880.0,1.1327485]
[1748409235801,0.23022901,108890.0,108880.0,1.6463085]
[1748409236312,0.23022901,108890.0,108880.0,1.52499021]
[1748409236506,0.23022901,108890.0,108880.0,1.6463085]
[1748409236712,0.23022901,108890.0,108880.0,1.18225825]
[1748409236907,0.23022901,108890.0,108880.0,1.65609888]
[1748409236908,0.3515473,108890.0,108880.0,1.65609888]
[1748409237212,0.23022901,108890.0,108880.0,1.77741717]
[1748409237802,0.23022901,108890.0,108880.0,1.61681836]
[1748409239510,0.23022901,108890.0,108880.0,1.97761836]
[1748409240313,0.23022901,108890.0,108880.0,1.25601836]
[1748409240514,0.23022901,108890.0,108880.0,1.92811631]
[1748409240707,0.23022901,108890.0,108880.0,1.84650969]
[1748409240913,0.23022901,108890.0,108880.0,1.7251914]
[1748409241107,0.23022901,108890.0,108880.0,1.84650969]
[1748409241408,0.23022901,108890.0,108880.0,1.97761019]
[1748409241607,0.23022901,108890.0,108880.0,1.92811631]
[1748409242015,0.22574692,108890.0,108880.0,1.97760941]
[1748409243213,0.22574692,108890.0,108880.0,1.92900279]
[1748409243710,0.22574692,108890.0,108880.0,1.96150279]
[1748409244421,0.22574692,108890.0,108880.0,1.60070279]
[1748409245220,0.22574692,108890.0,108880.0,1.08714279]
[1748409245418,0.22574692,108890.0,108880.0,1.60070279]
[1748409245818,0.22574692,108890.0,108880.0,1.68223157]
[1748409247720,0.22574692,108890.0,108880.0,1.26487157]
[1748409247917,0.22574692,108890.0,108880.0,1.68223157]
[1748409248115,0.22574692,108890.0,108880.0,1.69395948]
[1748409249513,0.22574692,108890.0,108880.0,1.64446638]
[1748409249817,0.22574692,108890.0,108880.0,1.69394535]
[1748409250011,0.34706521,108890.0,108880.0,1.18038535]
[1748409250211,0.34706521,108890.0,108880.0,1.69394535]
[1748409250519,0.34706521,108890.0,108880.0,1.60068866]
[1748409252630,0.22574692,108890.0,108880.0,1.60068866]
[1748409253417,0.22574692,108890.0,108880.0,1.69394535]
[1748409253825,0.22574692,108890.0,108880.0,1.60068866]
[1748409254723,0.22574692,108890.0,108880.0,1.08712866]
[1748409255018,0.23022901,108890.0,108880.0,1.08712866]
[1748409255324,0.23022901,108890.0,108880.0,1.60068866]
[1748409255822,0.23022901,108890.0,108880.0,1.69394535]
[1748409256222,0.22574692,108890.0,108880.0,1.69394535]
[1748409256522,0.22574692,108890.0,108880.0,1.63783354]
[1748409257321,0.22574692,108890.0,108880.0,1.33312649]
[1748409257509,0.22574692,108890.0,108880.0,1.63783354]
[1748409258126,0.22574692,108890.0,108880.0,1.58835457]
[1748409258325,0.22574692,108890.0,108880.0,1.63787047]
[1748409259522,0.22574692,108890.0,108880.0,1.70799836]
[1748409260025,0.22574692,108890.0,108880.0,1.68231591]
[1748409261624,0.22574692,108890.0,108880.0,1.16875591]
[1748409261822,0.22574692,108890.0,108880.0,1.68231591]
[1748409262218,0.22574692,108890.0,108880.0,1.6262128]
[1748409262421,0.22574692,108890.0,108880.0,1.74755794]
[1748409263018,0.25594692,108890.0,108880.0,1.74755794]
[1748409263221,0.25594692,108890.0,108880.0,1.23399794]
[1748409263413,0.25594692,108890.0,108880.0,1.74755794]
[1748409263926,0.25594692,108890.0,108880.0,1.23399794]
[1748409264222,0.25594692,108890.0,108880.0,1.74755794]
[1748409266829,0.25594692,108890.0,108880.0,1.74755668]
[1748409267519,0.25594692,108890.0,108880.0,1.74755612]
[1748409267723,0.25654692,108890.0,108880.0,1.74755612]
[1748409269720,0.25654692,108890.0,108880.0,1.80368296]
[1748409269926,0.25654692,108890.0,108880.0,1.67254301]
[1748409272120,0.19314692,108890.0,108880.0,1.67254301]
[1748409272329,0.19302692,108890.0,108880.0,1.67254301]
[1748409272522,0.22602692,108890.0,108880.0,1.67254301]
[1748409272720,0.25714692,108890.0,108880.0,1.67254301]
[1748409275328,0.26162901,108890.0,108880.0,1.67254301]
[1748409276327,0.25714692,108890.0,108880.0,1.67254301]
[1748409279728,0.25714692,108890.0,108880.0,1.7590376]
[1748409280024,0.25714692,108890.0,108880.0,1.82915853]
[1748409280221,0.25714692,108890.0,108880.0,2.18995853]
[1748409280926,0.25714692,108890.0,108880.0,2.06860024]
[1748409281128,0.28894692,108890.0,108880.0,2.06860024]
[1748409281327,0.28894692,108890.0,108880.0,1.97534355]
[1748409282228,0.28894692,108890.0,108880.0,2.06860024]
[1748409282622,0.28994692,108890.0,108880.0,2.06860024]
[1748409284233,0.28894692,108890.0,108880.0,2.06860024]
[1748409284430,0.28894692,108890.0,108880.0,2.18991853]
[1748409286418,0.32584652,108890.0,108880.0,2.03330357]
[1748409287022,0.32584652,108890.0,108880.0,1.91198528]
[1748409290434,0.32584652,108890.0,108880.0,1.79066699]
[1748409290635,0.32584652,108890.0,108880.0,1.91198528]
[1748409290937,0.32584652,108890.0,108880.0,1.84644528]
[1748409292535,0.44716481,108890.0,108880.0,1.84644528]
[1748409293739,0.32584652,108890.0,108880.0,1.84644528]
[1748409294033,0.28894692,108890.0,108880.0,1.84644528]
[1748409296226,0.41026521,108890.0,108880.0,1.33296528]
[1748409296426,0.41026521,108890.0,108880.0,1.84644528]
[1748409296938,0.41026521,108890.0,108880.0,1.33296528]
[1748409297128,0.41026521,108890.0,108880.0,1.84644528]
[1748409299039,0.41026521,108890.0,108880.0,1.46395057]
[1748409299239,0.41026521,108890.0,108880.0,1.97743057]
[1748409300543,0.41026521,108890.0,108880.0,1.9280799]
[1748409300744,0.41026521,108890.0,108880.0,1.84644528]
[1748409301539,0.41026521,108890.0,108880.0,0.61136528]
[1748409301771,1.02111719,108890.0,108880.0,0.21952119]
[1748409302054,1.31414118,108890.0,108880.0,0.0128807]
[1748409302245,1.12151234,108890.0,108880.0,0.00012]
[1748409302548,1.12151234,108890.0,108880.0,0.0129404]
[1748409302843,1.48146118,108890.0,108880.0,0.01294042]
[1748409303041,1.36014289,108890.0,108880.0,0.01294042]
[1748409303242,1.63014289,108890.0,108880.0,0.01294042]
[1748409303440,1.36014289,108890.0,108880.0,0.00012]
[1748409303740,1.80146118,108890.0,108880.0,0.00012]
[1748409303934,1.48146118,108890.0,108880.0,0.00012]
[1748409304829,1.06414118,108890.0,108880.0,0.00012]
[1748409305336,0.9842235,108890.0,108880.0,0.00012]
[1748409305529,1.06402279,108890.0,108880.0,0.00012]
[1748409305838,1.42402279,108890.0,108880.0,0.00012]
[1748409306044,1.06402279,108890.0,108880.0,0.00012]
[1748409307650,1.02106654,108890.0,108880.0,0.00012]
[1748409309848,1.34106654,108890.0,108880.0,0.00012]
[1748409310044,1.02106654,108890.0,108880.0,0.00012]
[1748409311235,1.34106654,108890.0,108880.0,0.00012]
[1748409311446,1.02106654,108890.0,108880.0,0.00012]
[1748409312245,1.40106654,108890.0,108880.0,0.00012]
[1748409312446,1.02106654,108890.0,108880.0,0.00012]
[1748409313245,1.49238483,108890.0,108880.0,0.00012]
[1748409313652,1.37106654,108890.0,108880.0,0.00012]
[1748409313853,1.37554863,108890.0,108880.0,0.00012]
[1748409314054,1.3755108,108890.0,108880.0,0.00012]
[1748409314856,1.37102871,108890.0,108880.0,0.00012]
[1748409315854,1.3755108,108890.0,108880.0,0.00012]
[1748409318157,1.37102871,108890.0,108880.0,0.00012]
[1748409318363,0.1835987,108880.0,108870.0,0.0340778]
[1748409318551,0.1835987,108880.0,108870.0,0.0013778]
[1748409318552,0.92033844,108880.0,108870.0,0.0013778]
[1748409318752,0.92240643,108880.0,108870.0,0.0013778]
[1748409318954,0.92240643,108880.0,108870.0,0.0113778]
[1748409319350,0.92867643,108880.0,108870.0,0.0013778]
[1748409319549,0.92867643,108880.0,108870.0,0.0343778]
[1748409319843,1.04999472,108880.0,108870.0,0.0343778]
[1748409320257,1.05916157,108880.0,108870.0,0.0343778]
[1748409320860,1.05916157,108880.0,108870.0,0.0443778]
[1748409321060,1.05916157,108880.0,108870.0,0.0343778]
[1748409321259,1.05916157,108880.0,108870.0,0.0013778]
[1748409321555,1.05916157,108880.0,108870.0,0.0014978]
[1748409321855,1.06116157,108880.0,108870.0,0.0014978]
[1748409322559,1.0611653,108880.0,108870.0,0.0332978]
[1748409323859,1.0611653,108880.0,108870.0,0.0014978]
[1748409324356,1.3711653,108880.0,108870.0,0.0013778]
[1748409324549,1.0611653,108880.0,108870.0,0.0014978]
[1748409324744,1.3611653,108880.0,108870.0,0.0014978]
[1748409324951,1.0611653,108880.0,108870.0,0.0014978]
[1748409325151,1.4411653,108880.0,108870.0,0.0014978]
[1748409326561,1.48407972,108880.0,108870.0,0.0013778]
[1748409326762,1.48411352,108880.0,108870.0,0.0014978]
[1748409327158,1.44118065,108880.0,108870.0,0.0014978]
[1748409327559,1.48411352,108880.0,108870.0,0.0014978]
[1748409327860,1.40435841,108880.0,108870.0,0.0014978]
[1748409328072,1.90148899,108880.0,108870.0,0.0014978]